[Event "GrandPrix_29.05"]
[Site "Chess.com"]
[Date "2020.05.29"]
[Round "4"]
[White "tornikesanikidze"]
[Black "SavelijTartakover"]
[Result "0-1"]
[WhiteElo "2115"]
[BlackElo "2423"]
[TimeControl "600+2"]
[EndTime "10:44:51 PDT"]
[Termination "SavelijTartakover won by resignation"]

1. d4 {[%clk 0:10:01.9]} 1... d5 {[%clk 0:09:59.5]} 2. c4 {[%clk 0:10:02.6]}
2... c6 {[%clk 0:09:58.7]} 3. Nf3 {[%clk 0:10:03.8]} 3... Nf6 {[%clk 0:09:58.9]}
4. cxd5 {[%clk 0:10:04.3]} 4... cxd5 {[%clk 0:09:58.7]} 5. Nc3 {[%clk
0:10:05.7]} 5... Nc6 {[%clk 0:09:59]} 6. Bf4 {[%clk 0:10:06.9]} 6... Bf5 {[%clk
0:09:51.3]} 7. Qb3 {[%clk 0:10:07.4]} 7... Na5 {[%clk 0:09:40.7]} 8. Qa4+ {[%clk
0:10:07.2]} 8... Bd7 {[%clk 0:09:41]} 9. Qc2 {[%clk 0:10:08]} 9... e6 {[%clk
0:09:27.4]} 10. e3 {[%clk 0:10:08.7]} 10... Be7 {[%clk 0:09:27.9]} 11. Bd3
{[%clk 0:10:04.3]} 11... Nh5 {[%clk 0:09:18.1]} 12. Be5 {[%clk 0:10:03.2]} 12...
Nc6 {[%clk 0:09:16.5]} 13. g4 {[%clk 0:09:50.7]} 13... Nf6 {[%clk 0:09:02.3]}
14. Bxf6 {[%clk 0:09:51.4]} 14... Nb4 {[%clk 0:08:43.9]} 15. Qe2 {[%clk
0:09:50.4]} 15... Nxd3+ {[%clk 0:08:43.6]} 16. Qxd3 {[%clk 0:09:52.3]} 16...
gxf6 {[%clk 0:08:37.7]} 17. O-O-O {[%clk 0:09:51.9]} 17... Rc8 {[%clk
0:08:31.1]} 18. Kb1 {[%clk 0:09:53]} 18... Qa5 {[%clk 0:08:27.6]} 19. Rc1 {[%clk
0:09:53.8]} 19... Bb4 {[%clk 0:08:16.2]} 20. Ne2 {[%clk 0:09:43.3]} 20... Ke7
{[%clk 0:08:11.8]} 21. Nf4 {[%clk 0:09:33.7]} 21... Bb5 {[%clk 0:07:59.6]} 22.
Qb3 {[%clk 0:09:34.2]} 22... Bc4 {[%clk 0:07:42.5]} 23. Rxc4 {[%clk 0:09:34.4]}
23... dxc4 {[%clk 0:07:37.2]} 24. Qc2 {[%clk 0:09:35.1]} 24... Bd6 {[%clk
0:07:28.1]} 25. Nh5 {[%clk 0:09:34]} 25... f5 {[%clk 0:07:17.8]} 26. h3 {[%clk
0:09:32.2]} 26... c3 {[%clk 0:07:04.7]} 27. gxf5 {[%clk 0:09:23.7]} 27... Qxf5
{[%clk 0:06:56]} 28. Qxf5 {[%clk 0:09:24.2]} 28... exf5 {[%clk 0:06:56.8]} 29.
bxc3 {[%clk 0:09:13.7]} 29... Rxc3 {[%clk 0:06:55.8]} 30. Ng7 {[%clk 0:08:42.5]}
30... Kf6 {[%clk 0:06:49.5]} 31. Rg1 {[%clk 0:08:40]} 31... Rhc8 {[%clk
0:06:42.5]} 32. Nd2 {[%clk 0:08:39.3]} 32... Rc2 {[%clk 0:06:30]} 33. Nh5+
{[%clk 0:08:36.4]} 33... Ke7 {[%clk 0:06:27.5]} 34. Nb3 {[%clk 0:08:35.2]} 34...
Rxf2 {[%clk 0:06:23.3]} 0-1

[Event "GrandPrix_29.05"]
[Site "Chess.com"]
[Date "2020.05.29"]
[Round "4"]
[White "FCLitras"]
[Black "StephenDedalus83"]
[Result "0-1"]
[WhiteElo "1712"]
[BlackElo "2158"]
[TimeControl "600+2"]
[EndTime "10:44:51 PDT"]
[Termination "StephenDedalus83 won by resignation"]

1. d4 {[%clk 0:10:01.9]} 1... g6 {[%clk 0:09:59.5]} 2. g3 {[%clk 0:09:57.6]}
2... Bg7 {[%clk 0:09:59.1]} 3. Bg2 {[%clk 0:09:58.9]} 3... d6 {[%clk 0:09:54.2]}
4. Nf3 {[%clk 0:09:58.7]} 4... Nd7 {[%clk 0:09:54.5]} 5. O-O {[%clk 0:09:56.4]}
5... e5 {[%clk 0:09:54.5]} 6. dxe5 {[%clk 0:09:51.3]} 6... dxe5 {[%clk
0:09:56.4]} 7. c4 {[%clk 0:09:49]} 7... Ngf6 {[%clk 0:09:54.5]} 8. Nc3 {[%clk
0:09:48.7]} 8... O-O {[%clk 0:09:54.5]} 9. b3 {[%clk 0:09:26.3]} 9... Re8 {[%clk
0:09:53]} 10. Ba3 {[%clk 0:09:15.3]} 10... e4 {[%clk 0:09:49.7]} 11. Nd4 {[%clk
0:09:10.1]} 11... e3 {[%clk 0:09:20.2]} 12. f4 {[%clk 0:09:05.3]} 12... c6
{[%clk 0:09:19.8]} 13. Rc1 {[%clk 0:09:03.5]} 13... Ng4 {[%clk 0:09:14.8]} 14.
Nf3 {[%clk 0:08:55.5]} 14... Nf2 {[%clk 0:09:12.2]} 15. Qc2 {[%clk 0:08:52.6]}
15... Nf6 {[%clk 0:09:10.7]} 16. Ne5 {[%clk 0:08:36.8]} 16... N6g4 {[%clk
0:09:06.4]} 17. Nxg4 {[%clk 0:08:30.3]} 17... Bxg4 {[%clk 0:09:07.2]} 18. Bc5
{[%clk 0:08:16.4]} 18... Qd2 {[%clk 0:07:45.5]} 19. Nb1 {[%clk 0:07:23.6]} 19...
Qxe2 {[%clk 0:07:08.8]} 20. Qxe2 {[%clk 0:07:14.8]} 20... Bxe2 {[%clk
0:07:09.5]} 21. Rfe1 {[%clk 0:07:10.1]} 21... Nd3 {[%clk 0:07:10.8]} 22. Rxe2
{[%clk 0:07:04.2]} 22... Nxc1 {[%clk 0:07:11.4]} 23. Rxe3 {[%clk 0:07:02.8]}
23... Rxe3 {[%clk 0:07:11]} 24. Bxe3 {[%clk 0:07:04.7]} 24... Nxa2 {[%clk
0:07:11.9]} 0-1

[Event "GrandPrix_29.05"]
[Site "Chess.com"]
[Date "2020.05.29"]
[Round "4"]
[White "Pierluigi15"]
[Black "ZverevLev"]
[Result "1-0"]
[WhiteElo "2521"]
[BlackElo "2230"]
[TimeControl "600+2"]
[EndTime "10:46:03 PDT"]
[Termination "Pierluigi15 won by checkmate"]

1. d4 {[%clk 0:10:01.9]} 1... Nf6 {[%clk 0:09:59.3]} 2. c4 {[%clk 0:10:00.2]}
2... e6 {[%clk 0:09:57.2]} 3. Nc3 {[%clk 0:09:59.1]} 3... Bb4 {[%clk 0:09:55.5]}
4. Bd2 {[%clk 0:09:59.5]} 4... c5 {[%clk 0:09:24.3]} 5. e3 {[%clk 0:09:51.3]}
5... Nc6 {[%clk 0:09:20.7]} 6. a3 {[%clk 0:09:50.6]} 6... Bxc3 {[%clk
0:09:20.2]} 7. Bxc3 {[%clk 0:09:52.5]} 7... O-O {[%clk 0:09:20.4]} 8. d5 {[%clk
0:09:43.2]} 8... Ne7 {[%clk 0:09:19.5]} 9. Bxf6 {[%clk 0:09:37.4]} 9... gxf6
{[%clk 0:09:21.4]} 10. d6 {[%clk 0:09:25.4]} 10... Ng6 {[%clk 0:09:19.7]} 11. h4
{[%clk 0:09:24.9]} 11... Qa5+ {[%clk 0:09:07.4]} 12. b4 {[%clk 0:09:12.1]} 12...
cxb4 {[%clk 0:09:07.2]} 13. Bd3 {[%clk 0:09:13.8]} 13... bxa3+ {[%clk
0:09:05.4]} 14. Kf1 {[%clk 0:09:10.6]} 14... Qc3 {[%clk 0:08:58.7]} 15. Ne2
{[%clk 0:08:56.6]} 15... Qb4 {[%clk 0:08:48.8]} 16. Rb1 {[%clk 0:08:45.9]} 16...
Qc5 {[%clk 0:08:48]} 17. Rb5 {[%clk 0:08:46.1]} 17... Qxd6 {[%clk 0:08:43.1]}
18. h5 {[%clk 0:08:45.8]} 18... a2 {[%clk 0:08:24.8]} 19. hxg6 {[%clk
0:08:41.3]} 19... Qxd3 {[%clk 0:08:11.3]} 20. Qxd3 {[%clk 0:08:33.7]} 20...
a1=Q+ {[%clk 0:08:09.9]} 21. Rb1 {[%clk 0:08:35.1]} 21... Qe5 {[%clk 0:08:02]}
22. g7 {[%clk 0:08:34.1]} 22... f5 {[%clk 0:07:46.4]} 23. gxf8=Q+ {[%clk
0:08:33]} 23... Kxf8 {[%clk 0:07:48.3]} 24. Qa3+ {[%clk 0:08:28.5]} 24... d6
{[%clk 0:07:47]} 25. f4 {[%clk 0:08:27.8]} 25... Qc5 {[%clk 0:07:43]} 26. Qxc5
{[%clk 0:08:27.5]} 26... dxc5 {[%clk 0:07:44.9]} 27. Rxh7 {[%clk 0:08:28.7]}
27... Kg8 {[%clk 0:07:43.2]} 28. Rh4 {[%clk 0:08:29.3]} 28... Bd7 {[%clk
0:07:43]} 29. Rxb7 {[%clk 0:08:29.2]} 29... Bc6 {[%clk 0:07:42]} 30. Rc7 {[%clk
0:08:28.5]} 30... Be4 {[%clk 0:07:42.2]} 31. Rxc5 {[%clk 0:08:26.4]} 31... a5
{[%clk 0:07:42.5]} 32. Nc3 {[%clk 0:08:27.6]} 32... Bd3+ {[%clk 0:07:42]} 33.
Kf2 {[%clk 0:08:29]} 33... a4 {[%clk 0:07:42.9]} 34. Rh1 {[%clk 0:08:30.2]}
34... a3 {[%clk 0:07:43.2]} 35. Ra1 {[%clk 0:08:31.7]} 35... Kg7 {[%clk
0:07:39.7]} 36. Nb5 {[%clk 0:08:32.9]} 36... a2 {[%clk 0:07:34.8]} 37. Nc3
{[%clk 0:08:32.7]} 37... Ra3 {[%clk 0:07:33.3]} 38. Nxa2 {[%clk 0:08:32]} 38...
Ra4 {[%clk 0:07:33.8]} 39. Nc1 {[%clk 0:08:19.6]} 39... Rxa1 {[%clk 0:07:31.8]}
40. Nxd3 {[%clk 0:08:20.8]} 40... Ra2+ {[%clk 0:07:31.7]} 41. Kf3 {[%clk
0:08:22.1]} 41... Rd2 {[%clk 0:07:31.6]} 42. Ne5 {[%clk 0:08:23]} 42... f6
{[%clk 0:07:31]} 43. Rc7+ {[%clk 0:08:24.2]} 43... Kh6 {[%clk 0:07:30.6]} 44.
Nf7+ {[%clk 0:08:23.1]} 44... Kg6 {[%clk 0:07:31.3]} 45. Nh8+ {[%clk 0:08:24.4]}
45... Kh6 {[%clk 0:07:32.2]} 46. c5 {[%clk 0:08:25.3]} 46... e5 {[%clk
0:07:31.3]} 47. fxe5 {[%clk 0:08:25.8]} 47... fxe5 {[%clk 0:07:32.8]} 48. Nf7+
{[%clk 0:08:27.4]} 48... Kh5 {[%clk 0:07:32.7]} 49. Nxe5 {[%clk 0:08:29.3]}
49... f4 {[%clk 0:07:32.8]} 50. exf4 {[%clk 0:08:28.4]} 50... Kh6 {[%clk
0:07:28.7]} 51. Rd7 {[%clk 0:08:22.6]} 51... Rc2 {[%clk 0:07:26.6]} 52. c6
{[%clk 0:08:23.6]} 52... Rc3+ {[%clk 0:07:27.4]} 53. Ke4 {[%clk 0:08:24.5]}
53... Rc1 {[%clk 0:07:22.8]} 54. Kf5 {[%clk 0:08:24.7]} 54... Rc5 {[%clk
0:07:19.8]} 55. c7 {[%clk 0:08:26]} 55... Ra5 {[%clk 0:07:09.4]} 56. c8=Q {[%clk
0:08:23.3]} 56... Rxe5+ {[%clk 0:07:06.4]} 57. Kxe5 {[%clk 0:08:23]} 57... Kh5
{[%clk 0:07:06.7]} 58. Qh8+ {[%clk 0:08:22.9]} 58... Kg4 {[%clk 0:07:07]} 59.
Rg7# {[%clk 0:08:24.7]} 1-0

[Event "GrandPrix_29.05"]
[Site "Chess.com"]
[Date "2020.05.29"]
[Round "4"]
[White "Arasvard"]
[Black "Zadar321"]
[Result "0-1"]
[WhiteElo "2034"]
[BlackElo "2022"]
[TimeControl "600+2"]
[EndTime "10:46:08 PDT"]
[Termination "Zadar321 won by resignation"]

1. d4 {[%clk 0:10:01.9]} 1... Nf6 {[%clk 0:10:00.5]} 2. c4 {[%clk 0:09:57.5]}
2... Nc6 {[%clk 0:10:01.2]} 3. Nf3 {[%clk 0:09:49.9]} 3... e6 {[%clk 0:10:01.8]}
4. Nc3 {[%clk 0:09:50.2]} 4... Bb4 {[%clk 0:10:02.4]} 5. Qc2 {[%clk 0:09:47.6]}
5... O-O {[%clk 0:10:02.1]} 6. a3 {[%clk 0:09:43.1]} 6... Bxc3+ {[%clk
0:10:02.2]} 7. Qxc3 {[%clk 0:09:45]} 7... d6 {[%clk 0:10:02.9]} 8. e3 {[%clk
0:09:44.6]} 8... Re8 {[%clk 0:10:02.4]} 9. Be2 {[%clk 0:09:43.4]} 9... e5 {[%clk
0:10:03.7]} 10. d5 {[%clk 0:09:38.7]} 10... Nb8 {[%clk 0:10:01.5]} 11. b4 {[%clk
0:09:37]} 11... a5 {[%clk 0:09:58.8]} 12. Bb2 {[%clk 0:09:35.2]} 12... axb4
{[%clk 0:09:59.2]} 13. axb4 {[%clk 0:09:36.7]} 13... Rxa1+ {[%clk 0:10:00.7]}
14. Bxa1 {[%clk 0:09:38.6]} 14... b5 {[%clk 0:10:01.8]} 15. cxb5 {[%clk
0:09:18.3]} 15... Bb7 {[%clk 0:09:58.5]} 16. O-O {[%clk 0:09:13.3]} 16... Nxd5
{[%clk 0:09:52.7]} 17. Qd2 {[%clk 0:09:14.2]} 17... Nd7 {[%clk 0:09:52.6]} 18.
Bc4 {[%clk 0:09:10.9]} 18... N7b6 {[%clk 0:09:50.9]} 19. Bb3 {[%clk 0:09:11.7]}
19... Qd7 {[%clk 0:09:42.7]} 20. e4 {[%clk 0:08:51.7]} 20... Nf4 {[%clk
0:09:39.2]} 21. Qe3 {[%clk 0:07:47.3]} 21... Qg4 {[%clk 0:08:43]} 22. Ne1 {[%clk
0:07:26.4]} 22... Ne2+ {[%clk 0:08:43.5]} 23. Kh1 {[%clk 0:07:26.7]} 23... Qxe4
{[%clk 0:08:41.7]} 24. Qxe4 {[%clk 0:07:21.7]} 24... Bxe4 {[%clk 0:08:41.8]} 25.
f3 {[%clk 0:07:12.3]} 25... Bd5 {[%clk 0:08:42.4]} 26. Bxd5 {[%clk 0:07:10.8]}
26... Nxd5 {[%clk 0:08:43.1]} 27. Nd3 {[%clk 0:07:09.2]} 27... Nd4 {[%clk
0:08:40.3]} 28. f4 {[%clk 0:06:44.3]} 28... f6 {[%clk 0:08:35.9]} 29. fxe5
{[%clk 0:06:41.8]} 29... fxe5 {[%clk 0:08:36.8]} 30. Bxd4 {[%clk 0:06:34.9]}
30... exd4 {[%clk 0:08:37.4]} 31. Rf3 {[%clk 0:06:15.4]} 31... Rb8 {[%clk
0:08:27.9]} 32. Kg1 {[%clk 0:06:11.9]} 32... Rxb5 {[%clk 0:08:28.4]} 33. Rf5
{[%clk 0:06:05.1]} 33... c6 {[%clk 0:08:26.4]} 34. h4 {[%clk 0:05:43.8]} 34...
g6 {[%clk 0:08:21.6]} 35. Rg5 {[%clk 0:05:43.7]} 35... Kg7 {[%clk 0:08:16.1]}
36. h5 {[%clk 0:05:44.5]} 36... Kf6 {[%clk 0:08:13.5]} 37. Rg3 {[%clk
0:05:44.7]} 37... Nxb4 {[%clk 0:08:08.9]} 0-1

[Event "GrandPrix_29.05"]
[Site "Chess.com"]
[Date "2020.05.29"]
[Round "4"]
[White "rim1618"]
[Black "Batica1984"]
[Result "1-0"]
[WhiteElo "2481"]
[BlackElo "2136"]
[TimeControl "600+2"]
[EndTime "10:46:24 PDT"]
[Termination "rim1618 won by resignation"]

1. d4 {[%clk 0:10:00.1]} 1... Nf6 {[%clk 0:09:59.5]} 2. Nf3 {[%clk 0:10:00.7]}
2... e6 {[%clk 0:09:56.9]} 3. g3 {[%clk 0:10:01.4]} 3... c5 {[%clk 0:09:51.4]}
4. Bg2 {[%clk 0:09:54.7]} 4... cxd4 {[%clk 0:09:50.5]} 5. Nxd4 {[%clk
0:09:56.6]} 5... d5 {[%clk 0:09:49.6]} 6. O-O {[%clk 0:09:50.8]} 6... e5 {[%clk
0:09:50.8]} 7. Nb3 {[%clk 0:09:46.3]} 7... Be6 {[%clk 0:09:48.6]} 8. Nc3 {[%clk
0:09:21]} 8... Be7 {[%clk 0:09:31.8]} 9. e4 {[%clk 0:08:45.7]} 9... dxe4 {[%clk
0:07:55]} 10. Qxd8+ {[%clk 0:08:37.1]} 10... Kxd8 {[%clk 0:07:55]} 11. Rd1+
{[%clk 0:08:15.6]} 11... Nbd7 {[%clk 0:07:47.5]} 12. Nxe4 {[%clk 0:08:02.2]}
12... Nxe4 {[%clk 0:07:46.6]} 13. Bxe4 {[%clk 0:08:04.1]} 13... Kc7 {[%clk
0:07:43.5]} 14. Be3 {[%clk 0:08:01.3]} 14... Rhd8 {[%clk 0:07:24.3]} 15. Na5
{[%clk 0:06:50]} 15... Nc5 {[%clk 0:06:46.3]} 16. Rxd8 {[%clk 0:06:24]} 16...
Rxd8 {[%clk 0:06:38.1]} 17. Bxc5 {[%clk 0:06:23.2]} 17... Bxc5 {[%clk
0:06:27.7]} 18. Nxb7 {[%clk 0:06:24.1]} 18... Bd5 {[%clk 0:05:58.3]} 19. Nxc5
{[%clk 0:06:21.4]} 1-0

[Event "GrandPrix_29.05"]
[Site "Chess.com"]
[Date "2020.05.29"]
[Round "4"]
[White "gross-aleks"]
[Black "Vuk2000"]
[Result "0-1"]
[WhiteElo "2054"]
[BlackElo "2219"]
[TimeControl "600+2"]
[EndTime "10:46:47 PDT"]
[Termination "Vuk2000 won by resignation"]

1. c4 {[%clk 0:10:01.9]} 1... e5 {[%clk 0:10:00.4]} 2. g3 {[%clk 0:10:01.3]}
2... Nc6 {[%clk 0:10:01.3]} 3. Bg2 {[%clk 0:10:02.3]} 3... d6 {[%clk 0:10:02.3]}
4. Nc3 {[%clk 0:10:03.4]} 4... Be6 {[%clk 0:10:03.1]} 5. Nd5 {[%clk 0:10:03.4]}
5... Qd7 {[%clk 0:10:03.3]} 6. Rb1 {[%clk 0:10:02.3]} 6... Nd8 {[%clk
0:10:02.7]} 7. d3 {[%clk 0:09:57.1]} 7... c6 {[%clk 0:10:02.6]} 8. Nc3 {[%clk
0:09:57.4]} 8... g6 {[%clk 0:09:54.2]} 9. e4 {[%clk 0:09:56.2]} 9... Bg7 {[%clk
0:09:48.9]} 10. Nge2 {[%clk 0:09:44.2]} 10... Bh3 {[%clk 0:09:48.6]} 11. O-O
{[%clk 0:09:44.6]} 11... Bxg2 {[%clk 0:09:49]} 12. Kxg2 {[%clk 0:09:46.5]} 12...
Ne7 {[%clk 0:09:46.3]} 13. d4 {[%clk 0:09:47]} 13... exd4 {[%clk 0:09:44.4]} 14.
Nxd4 {[%clk 0:09:47.3]} 14... Ne6 {[%clk 0:09:41.1]} 15. Nde2 {[%clk 0:09:09.2]}
15... O-O {[%clk 0:09:36.8]} 16. b3 {[%clk 0:08:39.3]} 16... f5 {[%clk
0:09:35.2]} 17. Ba3 {[%clk 0:08:39.3]} 17... f4 {[%clk 0:08:36.7]} 18. f3 {[%clk
0:08:35.4]} 18... Rad8 {[%clk 0:08:24.2]} 19. gxf4 {[%clk 0:07:43]} 19... Nxf4+
{[%clk 0:07:55.6]} 20. Nxf4 {[%clk 0:07:43.3]} 20... Rxf4 {[%clk 0:07:51.5]} 21.
Ne2 {[%clk 0:07:34]} 21... Rh4 {[%clk 0:07:51.7]} 22. Rf2 {[%clk 0:06:55.3]}
22... Be5 {[%clk 0:07:32.9]} 23. f4 {[%clk 0:06:33.8]} 23... Qh3+ {[%clk
0:07:31]} 24. Kg1 {[%clk 0:06:01.3]} 24... Rg4+ {[%clk 0:07:22.3]} 25. Kh1
{[%clk 0:05:58.1]} 25... Qe3 {[%clk 0:07:07]} 26. fxe5 {[%clk 0:05:28.7]} 26...
Qxe4+ {[%clk 0:07:04.6]} 0-1

[Event "GrandPrix_29.05"]
[Site "Chess.com"]
[Date "2020.05.29"]
[Round "4"]
[White "kostasam18"]
[Black "Baron_von_Koenig"]
[Result "0-1"]
[WhiteElo "2055"]
[BlackElo "2243"]
[TimeControl "600+2"]
[EndTime "10:47:14 PDT"]
[Termination "Baron_von_Koenig won by resignation"]

1. e4 {[%clk 0:10:01.9]} 1... d5 {[%clk 0:10:00.4]} 2. exd5 {[%clk 0:09:58.4]}
2... Qxd5 {[%clk 0:10:02]} 3. Nc3 {[%clk 0:09:58.2]} 3... Qd6 {[%clk 0:10:03.2]}
4. d4 {[%clk 0:09:58.3]} 4... Nf6 {[%clk 0:10:04.7]} 5. Nf3 {[%clk 0:10:00.2]}
5... a6 {[%clk 0:10:06.1]} 6. Bd3 {[%clk 0:09:51.7]} 6... Bg4 {[%clk 0:10:04.5]}
7. Ne4 {[%clk 0:09:45.3]} 7... Nxe4 {[%clk 0:10:04.5]} 8. Bxe4 {[%clk
0:09:45.4]} 8... f5 {[%clk 0:10:04.1]} 9. Bd3 {[%clk 0:09:41.9]} 9... Nc6 {[%clk
0:10:00.7]} 10. h3 {[%clk 0:09:26.2]} 10... Bxf3 {[%clk 0:10:01.1]} 11. Qxf3
{[%clk 0:09:23.2]} 11... g6 {[%clk 0:09:57.9]} 12. c3 {[%clk 0:09:20.3]} 12...
e5 {[%clk 0:09:53.2]} 13. d5 {[%clk 0:09:02.6]} 13... e4 {[%clk 0:09:49.4]} 14.
Qe2 {[%clk 0:08:45.6]} 14... Ne5 {[%clk 0:09:35.6]} 15. Bc4 {[%clk 0:08:19.3]}
15... Nxc4 {[%clk 0:09:32.2]} 16. Qxc4 {[%clk 0:08:19.2]} 16... O-O-O {[%clk
0:09:33.7]} 17. Bg5 {[%clk 0:07:46]} 17... Qxd5 {[%clk 0:09:18.8]} 18. Qxd5
{[%clk 0:07:43.5]} 18... Rxd5 {[%clk 0:09:19.3]} 19. Rd1 {[%clk 0:07:43.4]}
19... Rxd1+ {[%clk 0:09:12.4]} 20. Kxd1 {[%clk 0:07:44.1]} 20... Bg7 {[%clk
0:09:13.6]} 21. Ke2 {[%clk 0:07:43.4]} 21... h6 {[%clk 0:09:14.2]} 22. Be7
{[%clk 0:07:41.6]} 22... Re8 {[%clk 0:09:14.6]} 23. Bc5 {[%clk 0:07:40.9]} 23...
Rd8 {[%clk 0:09:14.6]} 24. h4 {[%clk 0:07:38.6]} 24... Rd5 {[%clk 0:08:54.3]}
25. Be3 {[%clk 0:07:35.1]} 25... Kd7 {[%clk 0:08:55.4]} 26. f3 {[%clk
0:07:20.9]} 26... exf3+ {[%clk 0:08:54.5]} 27. Kxf3 {[%clk 0:07:17.9]} 27... h5
{[%clk 0:08:50.8]} 28. Bg5 {[%clk 0:07:10.6]} 28... Be5 {[%clk 0:08:47.4]} 29.
Re1 {[%clk 0:07:05.1]} 29... Kd6 {[%clk 0:08:42.4]} 30. Re2 {[%clk 0:06:42.5]}
30... b5 {[%clk 0:08:38.3]} 31. Bh6 {[%clk 0:06:14]} 31... Rd3+ {[%clk
0:08:37.5]} 32. Re3 {[%clk 0:05:56.9]} 32... Rxe3+ {[%clk 0:08:18.3]} 33. Kxe3
{[%clk 0:05:47.7]} 33... Kd5 {[%clk 0:08:16.1]} 34. Kd3 {[%clk 0:05:44]} 34...
c5 {[%clk 0:08:16.1]} 35. Bf8 {[%clk 0:05:19.1]} 35... Bf6 {[%clk 0:08:10.7]}
36. b3 {[%clk 0:04:42.2]} 36... c4+ {[%clk 0:08:11.6]} 37. bxc4+ {[%clk
0:04:42.4]} 37... bxc4+ {[%clk 0:08:13.5]} 38. Ke3 {[%clk 0:04:43]} 0-1

[Event "GrandPrix_29.05"]
[Site "Chess.com"]
[Date "2020.05.29"]
[Round "4"]
[White "monalize"]
[Black "jncool68"]
[Result "0-1"]
[WhiteElo "1940"]
[BlackElo "2209"]
[TimeControl "600+2"]
[EndTime "10:47:55 PDT"]
[Termination "jncool68 won by resignation"]

1. e4 {[%clk 0:10:01.9]} 1... e5 {[%clk 0:09:59.5]} 2. Nf3 {[%clk 0:10:01.5]}
2... Nc6 {[%clk 0:10:00.3]} 3. Bb5 {[%clk 0:10:00.8]} 3... a6 {[%clk 0:10:00.4]}
4. Bxc6 {[%clk 0:10:00.8]} 4... dxc6 {[%clk 0:10:02.3]} 5. O-O {[%clk
0:10:01.2]} 5... Qf6 {[%clk 0:09:56.7]} 6. d4 {[%clk 0:10:00.5]} 6... exd4
{[%clk 0:09:57.3]} 7. Qxd4 {[%clk 0:09:57.3]} 7... Qxd4 {[%clk 0:09:57.3]} 8.
Nxd4 {[%clk 0:09:57.4]} 8... Bd7 {[%clk 0:09:57.9]} 9. Bf4 {[%clk 0:09:53.1]}
9... O-O-O {[%clk 0:09:58.2]} 10. Nc3 {[%clk 0:09:47.5]} 10... Ne7 {[%clk
0:09:54.6]} 11. Rad1 {[%clk 0:09:35.3]} 11... Ng6 {[%clk 0:09:52.3]} 12. Bg3
{[%clk 0:09:33.9]} 12... h5 {[%clk 0:09:46.2]} 13. h3 {[%clk 0:09:26.1]} 13...
f6 {[%clk 0:09:42.1]} 14. Rfe1 {[%clk 0:07:50.1]} 14... Bb4 {[%clk 0:09:37.5]}
15. Nde2 {[%clk 0:07:41]} 15... Rhe8 {[%clk 0:09:25]} 16. a3 {[%clk 0:07:34.4]}
16... Bf8 {[%clk 0:09:25.2]} 17. Nf4 {[%clk 0:07:24.4]} 17... Nxf4 {[%clk
0:09:20.7]} 18. Bxf4 {[%clk 0:07:25.1]} 18... g5 {[%clk 0:09:21.2]} 19. Be3
{[%clk 0:07:24.6]} 19... Bd6 {[%clk 0:09:17.4]} 20. Bd4 {[%clk 0:07:14.2]} 20...
Re6 {[%clk 0:09:07.9]} 21. f3 {[%clk 0:07:14.9]} 21... g4 {[%clk 0:08:55.9]} 22.
hxg4 {[%clk 0:06:57.8]} 22... hxg4 {[%clk 0:08:56.6]} 23. Kf2 {[%clk 0:06:58]}
23... Rg8 {[%clk 0:08:52.2]} 24. Ne2 {[%clk 0:06:58.3]} 24... c5 {[%clk
0:08:11.6]} 25. Bc3 {[%clk 0:06:34.4]} 25... f5 {[%clk 0:08:05.2]} 26. exf5
{[%clk 0:06:17.4]} 26... g3+ {[%clk 0:08:04.2]} 27. Kf1 {[%clk 0:06:13.9]} 27...
Rh6 {[%clk 0:08:04.8]} 28. Ng1 {[%clk 0:06:05.3]} 28... Bxf5 {[%clk 0:07:57.8]}
29. Rd2 {[%clk 0:05:21.8]} 29... Bd7 {[%clk 0:07:56.9]} 30. Nh3 {[%clk 0:04:25]}
30... Bxh3 {[%clk 0:07:53.6]} 31. gxh3 {[%clk 0:04:26]} 31... Rxh3 {[%clk
0:07:55]} 32. Rg2 {[%clk 0:04:23.9]} 32... Rh1+ {[%clk 0:07:52.5]} 33. Rg1
{[%clk 0:04:24.6]} 33... g2+ {[%clk 0:07:42]} 34. Ke2 {[%clk 0:04:23.7]} 34...
Rxg1 {[%clk 0:07:37.8]} 35. Rxg1 {[%clk 0:04:23.7]} 35... Bh2 {[%clk 0:07:38.9]}
0-1

[Event "GrandPrix_29.05"]
[Site "Chess.com"]
[Date "2020.05.29"]
[Round "4"]
[White "DanielDardha2005"]
[Black "cantdefyme"]
[Result "1-0"]
[WhiteElo "2285"]
[BlackElo "2077"]
[TimeControl "600+2"]
[EndTime "10:49:06 PDT"]
[Termination "DanielDardha2005 won by resignation"]

1. Nf3 {[%clk 0:10:01.3]} 1... Nf6 {[%clk 0:09:53.5]} 2. c4 {[%clk 0:10:01.5]}
2... g6 {[%clk 0:09:54.1]} 3. Nc3 {[%clk 0:10:02.7]} 3... Bg7 {[%clk 0:09:54.1]}
4. e4 {[%clk 0:10:03.6]} 4... d6 {[%clk 0:09:53.3]} 5. d4 {[%clk 0:10:04.9]}
5... O-O {[%clk 0:09:53.5]} 6. Be2 {[%clk 0:10:04.3]} 6... e5 {[%clk 0:09:53.8]}
7. d5 {[%clk 0:10:05.3]} 7... a5 {[%clk 0:09:54.1]} 8. Bg5 {[%clk 0:10:06.4]}
8... h6 {[%clk 0:09:46.7]} 9. Be3 {[%clk 0:10:05.3]} 9... Na6 {[%clk 0:09:46]}
10. Nd2 {[%clk 0:10:06.3]} 10... Nc5 {[%clk 0:09:35.7]} 11. O-O {[%clk
0:10:06.4]} 11... c6 {[%clk 0:09:32.2]} 12. a3 {[%clk 0:10:03.3]} 12... cxd5
{[%clk 0:09:03.2]} 13. cxd5 {[%clk 0:09:56]} 13... Nfd7 {[%clk 0:08:22.5]} 14.
b4 {[%clk 0:09:49.6]} 14... axb4 {[%clk 0:08:15]} 15. axb4 {[%clk 0:09:51.5]}
15... Rxa1 {[%clk 0:08:09.9]} 16. Qxa1 {[%clk 0:09:53.4]} 16... Na6 {[%clk
0:08:10.3]} 17. Qb2 {[%clk 0:09:51]} 17... Nb6 {[%clk 0:08:01.7]} 18. Ra1 {[%clk
0:09:35.2]} 18... f5 {[%clk 0:07:51.7]} 19. f3 {[%clk 0:09:34.6]} 19... Kh7
{[%clk 0:07:24.6]} 20. Nb5 {[%clk 0:09:02.6]} 20... h5 {[%clk 0:07:03.3]} 21.
Na7 {[%clk 0:08:52.5]} 21... Bh6 {[%clk 0:06:40]} 22. Bf2 {[%clk 0:08:45]} 22...
Bd7 {[%clk 0:05:44.4]} 23. Bxa6 {[%clk 0:08:36.2]} 23... bxa6 {[%clk 0:05:46.3]}
24. Rxa6 {[%clk 0:08:37.2]} 24... Na4 {[%clk 0:05:34.9]} 25. Qc2 {[%clk
0:08:33.5]} 25... Qa8 {[%clk 0:04:57]} 26. Nc4 {[%clk 0:08:12.7]} 26... fxe4
{[%clk 0:04:47.3]} 27. Rxd6 {[%clk 0:07:53.1]} 27... Be8 {[%clk 0:03:55.8]} 28.
Qxe4 {[%clk 0:07:46.3]} 28... Rf7 {[%clk 0:03:16.8]} 29. Qxg6+ {[%clk
0:07:05.8]} 1-0